fUST/lending_fUST_20240830
["ID","MTS","AMOUNT","RATE_DAILY","PERIOD"]
[336690964,1725028242422,-500.0,0.00035616,31]
[336690965,1725028242432,-500.0,0.00035616,31]
[336690966,1725028242442,-201.43,0.00035616,31]
[336690967,1725028242451,-500.0,0.00035616,31]
[336690968,1725028242460,-500.0,0.00035616,31]
[336690969,1725028242470,-479.94940491,0.00035616,31]
[336690970,1725028242479,-500.0,0.00035616,31]
[336690971,1725028242490,-501.59538685,0.00035616,31]
[336690972,1725028242500,-216.03856293,0.00035616,31]
[336690973,1725028242510,-573.88740182,0.00035616,31]
[336690974,1725028242519,-500.0,0.00035616,31]
[336690975,1725028242529,-500.0,0.00035616,31]
[336690976,1725028242539,-500.0,0.00035616,31]
[336690977,1725028242548,-500.0,0.00035616,31]
[336690978,1725028242558,-500.0,0.00035616,31]
[336690979,1725028242569,-501.93039559,0.00035616,31]
[336690980,1725028242578,-708.87,0.00035616,31]
[336690981,1725028242588,-500.0,0.00035616,31]
[336690982,1725028242598,-500.0,0.00035616,31]
[336690983,1725028242608,-500.0,0.00035616,31]
[336690984,1725028242618,-500.0,0.00035616,31]
[336690985,1725028242628,-500.0,0.00035616,31]
[336690986,1725028242639,-500.0,0.00035616,31]
[336690987,1725028242649,-500.0,0.00035616,31]
[336690988,1725028242658,-500.0,0.00035616,31]
[336690989,1725028242669,-500.0,0.00035616,31]
[336690990,1725028242678,-500.0,0.00035616,31]
[336690991,1725028242688,-500.0,0.00035616,31]
[336690992,1725028242698,-500.0,0.00035616,31]
[336690993,1725028242707,-500.0,0.00035616,31]
[336690994,1725028242716,-500.0,0.00035616,31]
[336690995,1725028242726,-500.0,0.00035616,31]
[336690996,1725028242736,-501.86854365,0.00035616,31]
[336690997,1725028242748,-500.0,0.00035616,31]
[336690998,1725028242758,-500.0,0.00035616,31]
[336690999,1725028242767,-500.0,0.00035616,31]
[336691000,1725028242776,-500.0,0.00035616,7]
[336691001,1725028242786,-500.0,0.00035616,31]
[336691002,1725028242796,-500.0,0.00035616,2]
[336691003,1725028242805,-500.0,0.00035616,31]
[336691004,1725028242815,-519.9009568,0.00035616,31]
[336691005,1725028242826,-500.0,0.00035616,31]
[336691006,1725028242835,-500.0,0.00035616,31]
[336691007,1725028242845,-503.53144977,0.00035616,31]
[336691008,1725028242859,-503.95821972,0.00035616,31]
[336691009,1725028242869,-500.0,0.00035616,31]
[336691010,1725028242878,-500.0,0.00035616,30]
[336691011,1725028242887,-421.59,0.00035616,31]
[336691012,1725028242898,-500.0,0.00035616,31]
[336691013,1725028242907,-500.0,0.00035616,31]
[336691014,1725028242917,-167.838508,0.00035616,31]
[336691015,1725028242928,-500.0,0.00035616,31]
[336691016,1725028242938,-479.36,0.00035616,31]
[336691017,1725028242948,-500.0,0.00035616,31]
[336691018,1725028242958,-1276.31,0.00035616,31]
[336691019,1725028242967,-428.31,0.00035616,31]
[336691021,1725028242977,-500.0,0.00035616,31]
[336691022,1725028242987,-500.0,0.00035616,31]
[336691023,1725028242998,-500.0,0.00035616,31]
[336691024,1725028243007,-500.0,0.00035616,31]
[336691025,1725028243017,-500.0,0.00035616,31]
[336691026,1725028243027,-500.0,0.00035616,31]
[336691027,1725028243037,-419.28040492,0.00035616,31]
[336691028,1725028243046,-500.0,0.00035616,31]
[336691029,1725028243056,-500.0,0.00035616,31]
[336691030,1725028243066,-500.0,0.00035616,31]
[336691032,1725028243075,-500.0,0.00035616,31]
[336691034,1725028243084,-500.0,0.00035616,31]
[336691035,1725028243093,-444.92300584,0.00035616,31]
[336691037,1725028243103,-500.12366886,0.00035616,31]
[336691039,1725028243112,-500.0,0.00035616,31]
[336691041,1725028243122,-500.0,0.00035616,31]
[336691043,1725028243132,-500.0,0.00035616,31]
[336691045,1725028243141,-500.0,0.00035616,31]
[336691046,1725028243150,-500.0,0.00035616,31]
[336691048,1725028243159,-401.06962922,0.00035616,31]
[336691050,1725028243169,-500.0,0.00035616,31]
[336691052,1725028243179,-500.0,0.00035616,31]
[336691054,1725028243190,-501.1310055,0.00035616,31]
[336691056,1725028243199,-500.0,0.00035616,31]
[336691058,1725028243209,-500.0,0.00035616,31]
[336691059,1725028243219,-500.0,0.00035616,31]
[336691061,1725028243229,-500.0,0.00035616,31]
[336691062,1725028243239,-500.0,0.00035616,31]
[336691063,1725028243249,-500.0,0.00035616,31]
[336691064,1725028243258,-500.0,0.00035616,31]
[336691065,1725028243267,-500.0,0.00035616,31]
[336691066,1725028243277,-500.0,0.00035616,31]
[336691067,1725028243286,-500.0,0.00035616,31]
[336691068,1725028243296,-500.0,0.00035616,31]
[336691069,1725028243305,-500.0,0.00035616,31]
[336691070,1725028243315,-409.52,0.00035616,31]
[336691071,1725028243324,-500.0,0.00035616,31]
[336691072,1725028243333,-554.50748821,0.00035616,31]
[336691073,1725028243344,-500.0,0.00035616,31]
[336691074,1725028243353,-280.46320173,0.00035616,31]
[336691075,1725028243363,-500.0,0.00035616,31]
[336691076,1725028243373,-289.78319095,0.00035616,31]
[336691077,1725028243384,-500.0,0.00035616,31]
[336691078,1725028243393,-500.0,0.00035616,31]
[336691079,1725028243403,-503.69026441,0.00035616,31]
[336691080,1725028243413,-243.38,0.00035616,31]
[336691081,1725028243422,-413.91,0.00035616,31]
[336691082,1725028243432,-504.87941688,0.00035616,31]
[336691084,1725028243441,-500.0,0.00035616,31]
[336691086,1725028243451,-500.0,0.00035616,60]
[336691088,1725028243460,-500.0,0.00035616,65]
[336691089,1725028243470,-500.0,0.00035616,70]
[336691090,1725028243480,-500.0,0.00035616,75]
[336691091,1725028243491,-500.0,0.00035616,80]
[336691092,1725028243500,-540.56346354,0.00035616,85]
[336691093,1725028243509,-500.0,0.00035616,31]
[336691094,1725028243519,-500.0,0.00035616,31]
[336691095,1725028243529,-2823.53,0.00035616,31]
[336691096,1725028243538,-500.0,0.00035616,31]
[336691097,1725028243547,-500.0,0.00035616,31]
[336691098,1725028243557,-500.0,0.00035616,31]
[336691099,1725028243566,-564.72001933,0.00035616,31]
[336691100,1725028243576,-500.0,0.00035616,31]
[336691101,1725028243586,-500.0,0.00035616,31]
[336691102,1725028243595,-500.0,0.00035616,31]
[336691103,1725028243605,-500.0,0.00035616,31]
[336691104,1725028243614,-428.1974464,0.00035616,31]
[336691105,1725028243624,-500.0,0.00035616,31]
[336691106,1725028243633,-506.17015623,0.00035616,31]
[336691107,1725028243643,-500.0,0.00035616,31]
[336691108,1725028243652,-500.0,0.00035616,31]
[336691109,1725028243661,-2818.46,0.00035616,31]
[336691110,1725028243670,-9722.75,0.00035616,8]
[336691111,1725028243679,-500.0,0.00035616,31]
[336691112,1725028243689,-500.0,0.00035616,31]
[336691113,1725028243698,-500.0,0.00035616,31]
[336691114,1725028243707,-500.0,0.00035616,31]
[336691115,1725028243717,-500.0,0.00035616,31]
[336691116,1725028243726,-500.0,0.00035616,31]
[336691117,1725028243736,-500.0,0.00035616,7]
[336691118,1725028243747,-500.0,0.00035616,31]
[336691119,1725028243756,-1060.05,0.00035616,21]
[336691120,1725028243766,-500.0,0.00035616,31]
[336691121,1725028243775,-500.0,0.00035616,31]
[336691122,1725028243785,-541.43444545,0.00035616,31]
[336691123,1725028243794,-500.0,0.00035616,31]
[336691124,1725028243803,-500.0,0.00035616,31]
[336691125,1725028243813,-757.34,0.00035616,31]
[336691126,1725028243823,-500.0,0.00035616,31]
[336691127,1725028243832,-500.0,0.00035616,31]
[336691128,1725028243841,-501.56368987,0.00035616,31]
[336691129,1725028243851,-500.0,0.00035616,31]
[336691130,1725028243864,-504.84076988,0.00035616,31]
[336691131,1725028243874,-1435.09,0.00035616,31]
[336691132,1725028243883,-478.49,0.00035616,31]
[336691133,1725028243892,-500.0,0.00035616,31]
[336691134,1725028243902,-502.94565628,0.00035616,31]
[336691135,1725028243912,-500.0,0.00035616,31]
[336691136,1725028243921,-500.0,0.00035616,31]
[336691137,1725028243931,-500.0,0.00035616,31]
[336691138,1725028243941,-500.0,0.00035616,31]
[336691139,1725028243950,-500.0,0.00035616,31]
[336691140,1725028243960,-500.0,0.00035616,31]
[336691141,1725028243969,-500.0,0.00035616,31]
[336691142,1725028243978,-500.0,0.00035616,31]
[336691143,1725028244072,-500.0,0.00035616,31]
[336691144,1725028244082,-500.0,0.00035616,31]
[336691146,1725028244091,-500.0,0.00035616,31]
[336691148,1725028244100,-539.08323609,0.00035616,31]
[336691150,1725028244109,-500.0,0.00035616,31]
[336691152,1725028244119,-500.0,0.00035616,31]
[336691153,1725028244128,-500.0,0.00035616,31]
[336691155,1725028244137,-1414.54,0.00035616,31]
[336691157,1725028244147,-500.0,0.00035616,31]
[336691158,1725028244157,-500.0,0.00035616,31]
[336691159,1725028244167,-500.0,0.00035616,31]
[336691160,1725028244176,-500.0,0.00035616,31]
[336691161,1725028244186,-500.0,0.00035616,31]
[336691162,1725028244195,-500.0,0.00035616,31]
[336691163,1725028244205,-500.0,0.00035616,31]
[336691164,1725028244214,-500.0,0.00035616,31]
[336691165,1725028244224,-500.0,0.00035616,31]
[336691166,1725028244235,-500.0,0.00035616,31]
[336691167,1725028244246,-500.0,0.00035616,31]
[336691168,1725028244256,-500.0,0.00035616,31]
[336691169,1725028244265,-500.0,0.00035616,31]
[336691170,1725028244274,-500.0,0.00035616,31]
[336691171,1725028244283,-500.0,0.00035616,31]
[336691172,1725028244293,-500.0,0.00035616,31]
[336691173,1725028244302,-500.0,0.00035616,31]
[336691174,1725028244311,-504.05827255,0.00035616,31]
[336691175,1725028244320,-922.96,0.00035616,31]
[336691176,1725028244330,-500.0,0.00035616,31]
[336691177,1725028244339,-500.0,0.00035616,31]
[336691178,1725028244349,-500.0,0.00035616,31]
[336691179,1725028244358,-500.0,0.00035616,31]
[336691180,1725028244367,-500.0,0.00035616,31]
[336691181,1725028244376,-500.0,0.00035616,31]
[336691182,1725028244385,-1493.2,0.00035616,31]
[336691183,1725028244394,-500.0,0.00035616,31]
[336691184,1725028244403,-500.0,0.00035616,31]
[336691185,1725028244413,-500.0,0.00035616,31]
[336691186,1725028244424,-500.0,0.00035616,31]
[336691187,1725028244434,-500.0,0.00035616,31]
[336691188,1725028244444,-501.36383161,0.00035616,31]
[336691189,1725028244453,-500.0,0.00035616,31]
[336691190,1725028244462,-500.0,0.00035616,31]
[336691191,1725028244471,-998.66,0.00035616,31]
[336691192,1725028244480,-2625.14,0.00035616,31]
[336691193,1725028244489,-500.0,0.00035616,31]
[336691194,1725028244508,-500.37306788,0.00035616,14]
[336691195,1725028244517,-500.0,0.00035616,31]
[336691196,1725028244526,-500.0,0.00035616,31]
[336691197,1725028244536,-500.0,0.00035616,31]
[336691198,1725028244545,-500.0,0.00035616,31]
[336691199,1725028244555,-500.0,0.00035616,31]
[336691200,1725028244564,-500.0,0.00035616,31]
[336691201,1725028244575,-500.0,0.00035616,31]
[336691202,1725028244586,-500.0,0.00035616,31]
[336691203,1725028244597,-500.0,0.00035616,31]
[336691204,1725028244607,-500.0,0.00035616,31]
[336691205,1725028244617,-512.36830498,0.00035616,31]
[336691206,1725028244629,-500.0,0.00035616,31]
[336691207,1725028244639,-1196.54,0.00035616,31]
[336691208,1725028244649,-500.0,0.00035616,31]
[336691209,1725028244660,-500.0,0.00035616,31]
[336691210,1725028244669,-500.0,0.00035616,7]
[336691211,1725028244679,-850.29,0.00035616,31]
[336691212,1725028244688,-500.0,0.00035616,2]
[336691213,1725028244697,-503.29758575,0.00035616,31]
[336691214,1725028244706,-500.0,0.00035616,31]
[336691215,1725028244716,-500.0,0.00035616,31]
[336691216,1725028244726,-500.0,0.00035616,31]
[336691217,1725028244735,-500.0,0.00035616,31]
[336691218,1725028244747,-500.0,0.00035616,31]
[336691219,1725028244756,-500.0,0.00035616,31]
[336691220,1725028244765,-500.0,0.00035616,31]
[336691221,1725028244774,-500.0,0.00035616,31]
[336691222,1725028244784,-500.0,0.00035616,31]
[336691223,1725028244794,-500.0,0.00035616,31]
[336691224,1725028244804,-500.0,0.00035616,31]
[336691225,1725028244813,-2646.45,0.00035616,31]
[336691226,1725028244822,-500.0,0.00035616,31]
[336691227,1725028244832,-505.66095307,0.00035616,31]
[336691228,1725028244842,-500.0,0.00035616,31]
[336691229,1725028244852,-500.0,0.00035616,31]
[336691230,1725028244864,-500.0,0.00035616,31]
[336691231,1725028244874,-500.0,0.00035616,31]
[336691232,1725028244883,-500.0,0.00035616,31]
[336691233,1725028244893,-227.90339001,0.00035616,31]
[336691234,1725028244903,-500.0,0.00035616,31]
[336691235,1725028244912,-500.0,0.00035616,31]
[336691236,1725028244923,-500.0,0.00035616,31]
[336691237,1725028244934,-500.0,0.00035616,31]
[336691238,1725028244943,-500.0,0.00035616,31]
[336691239,1725028244953,-501.05861392,0.00035616,31]
[336691240,1725028244963,-500.0,0.00035616,31]
[336691241,1725028244972,-500.0,0.00035616,31]
[336691242,1725028244981,-500.0,0.00035616,31]
[336691243,1725028244990,-500.58703518,0.00035616,31]
[336691244,1725028245000,-3540.65,0.00035616,31]
[336691245,1725028245009,-502.08021262,0.00035616,31]
[336691246,1725028245019,-500.0,0.00035616,31]
[336691247,1725028245029,-500.0,0.00035616,31]
[336691248,1725028245039,-500.0,0.00035616,31]
[336691249,1725028245048,-500.0,0.00035616,31]
[336691250,1725028245057,-500.0,0.00035616,31]
[336691251,1725028245066,-500.0,0.00035616,31]
[336691252,1725028245076,-500.0,0.00035616,31]
[336691253,1725028245085,-500.0,0.00035616,31]
[336691254,1725028245095,-500.0,0.00035616,31]
[336691255,1725028245104,-500.0,0.00035616,31]
[336691256,1725028245114,-500.0,0.00035616,31]
[336691257,1725028245124,-500.0,0.00035616,31]
[336691258,1725028245134,-500.0,0.00035616,20]
[336691259,1725028245144,-500.0,0.00035616,31]
[336691260,1725028245153,-500.0,0.00035616,31]
[336691261,1725028245162,-500.0,0.00035616,31]
[336691262,1725028245172,-500.0,0.00035616,31]
[336691263,1725028245182,-503.73719329,0.00035616,31]
[336691264,1725028245191,-500.0,0.00035616,31]
[336691265,1725028245200,-500.0,0.00035616,31]
[336691266,1725028245210,-500.0,0.00035616,31]
[336691267,1725028245219,-500.0,0.00035616,31]
[336691268,1725028245229,-500.0,0.00035616,31]
[336691269,1725028245238,-552.97968,0.00035616,31]
[336691270,1725028245248,-500.0,0.00035616,31]
[336691271,1725028245257,-502.21970778,0.00035616,31]
[336691272,1725028245266,-384.18026537,0.00035616,31]
[336691273,1725028245275,-151.0,0.00035616,7]
[336691274,1725028245285,-500.0,0.00035616,31]
[336691275,1725028245294,-151.0,0.00035616,7]
[336691276,1725028245303,-500.0,0.00035616,31]
[336691277,1725028245312,-500.0,0.00035616,31]
[336691278,1725028245321,-500.0,0.00035616,31]
[336691279,1725028245330,-500.0,0.00035616,31]
[336691280,1725028245339,-151.0,0.00035616,7]
[336691281,1725028245348,-151.0,0.00035616,7]
[336691282,1725028245357,-500.0,0.00035616,31]
[336691283,1725028245366,-500.0,0.00035616,31]
[336691284,1725028245375,-3177.91,0.00035616,31]
[336691285,1725028245385,-500.0,0.00035616,31]
[336691286,1725028245395,-500.0,0.00035616,31]
[336691287,1725028245404,-500.0,0.00035616,31]
[336691288,1725028245413,-2525.52,0.00035616,31]
[336691289,1725028245423,-500.0,0.00035616,31]
[336691290,1725028245432,-500.0,0.00035616,31]
[336691291,1725028245441,-500.0,0.00035616,31]
[336691292,1725028245452,-151.0,0.00035616,7]
[336691293,1725028245461,-500.0,0.00035616,31]
[336691294,1725028245470,-151.0,0.00035616,7]
[336691295,1725028245480,-151.0,0.00035616,7]
[336691296,1725028245489,-500.0,0.00035616,31]
[336691297,1725028245506,-151.0,0.00035616,7]
[336691298,1725028245515,-2418.22,0.00035616,31]
[336691299,1725028245525,-501.36158483,0.00035616,31]
[336691300,1725028245535,-500.0,0.00035616,31]
[336691301,1725028245545,-500.0,0.00035616,31]
[336691302,1725028245554,-500.0,0.00035616,31]
[336691303,1725028245564,-500.0,0.00035616,31]
[336691304,1725028245575,-500.0,0.00035616,31]
[336691305,1725028245584,-3759.53,0.00035616,31]
[336691306,1725028245594,-500.0,0.00035616,31]
[336691307,1725028245603,-500.0,0.00035616,31]
[336691308,1725028245614,-500.0,0.00035616,31]
[336691309,1725028245623,-6359.21107,0.00035616,7]
[336691310,1725028245633,-6359.21107,0.00035616,7]
[336691311,1725028245642,-500.0,0.00035616,31]
[336691312,1725028245652,-500.0,0.00035616,31]
[336691313,1725028245661,-504.09335323,0.00035616,31]
[336691314,1725028245671,-503.05662563,0.00035616,31]
[336691315,1725028245681,-500.0,0.00035616,31]
[336691316,1725028245690,-500.0,0.00035616,31]
[336691317,1725028245700,-500.0,0.00035616,31]
[336691318,1725028245710,-500.0,0.00035616,31]
[336691319,1725028245719,-1676.33,0.00035616,31]
[336691320,1725028245730,-500.0,0.00035616,31]
[336691321,1725028245739,-500.0,0.00035616,31]
[336691322,1725028245755,-6359.21107,0.00035616,7]
[336691323,1725028245765,-500.0,0.00035616,31]
[336691324,1725028245774,-6359.21107,0.00035616,7]
[336691325,1725028245784,-500.0,0.00035616,31]
[336691326,1725028245793,-500.0,0.00035616,31]
[336691327,1725028245802,-500.0,0.00035616,31]
[336691328,1725028245812,-500.0,0.00035616,31]
[336691329,1725028245821,-331.38,0.00035616,31]
[336691330,1725028245831,-500.0,0.00035616,31]
[336691331,1725028245840,-500.0,0.00035616,31]
[336691332,1725028245850,-588.59543233,0.00035616,31]
[336691333,1725028245864,-500.0,0.00035616,31]
[336691334,1725028245873,-502.98860748,0.00035616,31]
[336691335,1725028245882,-3505.682004,0.00035616,60]
[336691336,1725028245891,-500.0,0.00035616,31]
[336691337,1725028245902,-500.0,0.00035616,31]
[336691338,1725028245911,-500.0,0.00035616,31]
[336691339,1725028245922,-1256.0,0.00035616,31]
[336691340,1725028245937,-151.0,0.00035616,7]
[336691341,1725028245948,-500.0,0.00035616,31]
[336691342,1725028245958,-151.0,0.00035616,7]
[336691343,1725028245969,-500.0,0.00035616,31]
[336691344,1725028245980,-500.0,0.00035616,31]
[336691345,1725028245989,-500.0,0.00035616,31]
[336691346,1725028246004,-2749.54,0.00035616,31]
[336691347,1725028246013,-500.0,0.00035616,31]
[336691348,1725028246025,-500.0,0.00035616,31]
[336691349,1725028246034,-501.57173856,0.00035616,31]
[336691350,1725028246044,-567.82166052,0.00035616,31]
[336691352,1725028246054,-151.0,0.00035616,7]
[336691354,1725028246063,-151.0,0.00035616,7]
[336691356,1725028246073,-151.0,0.00035616,7]
[336691358,1725028246082,-500.0,0.00035616,31]
[336691359,1725028246091,-2403.102985,0.00035616,7]
[336691360,1725028246100,-2403.102985,0.00035616,7]
[336691361,1725028246110,-500.0,0.00035616,31]
[336691362,1725028246119,-500.0,0.00035616,31]
[336691363,1725028246128,-500.0,0.00035616,31]
[336691364,1725028246137,-2403.102985,0.00035616,7]
[336691368,1725028246228,-2403.102985,0.00035616,7]
[336691370,1725028246238,-3256.96,0.00035616,31]
[336691371,1725028246253,-500.0,0.00035616,31]
[336691372,1725028246262,-500.0,0.00035616,31]
[336691373,1725028246272,-500.0,0.00035616,31]
[336691374,1725028246281,-500.0,0.00035616,31]
[336691375,1725028246291,-1412.48,0.00035616,31]
[336691376,1725028246301,-500.0,0.00035616,31]
[336691377,1725028246310,-500.0,0.00035616,31]
[336691378,1725028246320,-362.46,0.00035616,31]
[336691379,1725028246330,-230.345981,0.00035616,7]
[336691380,1725028246340,-500.0,0.00035616,31]
[336691382,1725028246350,-197.353819,0.00035616,120]
[336691384,1725028246359,-500.0,0.00035619,7]
[336691385,1725028246368,-500.0,0.00035627,7]
[336691386,1725028246378,-151.0,0.00035627,7]
[336691387,1725028246388,-389.34698299,0.00035627,7]
[336691388,1725028246472,-508.25812121,0.00035616,31]
[336691389,1725028246482,-646.16277301,0.00035627,7]
[336691390,1725028246491,-1035.509756,0.00035627,7]
[336691391,1725028246502,-165.389772,0.00035627,7]
[336691392,1725028246512,-165.389772,0.00035627,7]
[336691393,1725028246521,-1787.717959,0.00035627,7]
[336691394,1725028246530,-1787.717959,0.00035627,7]
[336691395,1725028246540,-266.770046,0.00035627,7]
[336691396,1725028246549,-151.0,0.00035627,7]
[336691397,1725028246558,-266.770046,0.00035627,7]
[336691398,1725028246568,-151.0,0.00035627,7]
[336691399,1725028246577,-151.0,0.00035627,7]
[336691400,1725028246586,-151.0,0.00035627,7]
[336691401,1725028246595,-151.0,0.00035627,7]
[336691402,1725028246605,-151.0,0.00035627,7]
[336691403,1725028246614,-6359.21107,0.00035627,7]
[336691404,1725028246623,-6359.21107,0.00035627,7]
[336691405,1725028246633,-151.0,0.00035627,7]
[336691406,1725028246643,-2403.102985,0.00035627,7]
[336691407,1725028246653,-2403.102985,0.00035627,7]
[336691408,1725028246663,-435.0771508,0.00035673,5]
[336691409,1725028246673,-500.0,0.00035673,5]
[336691410,1725028246682,-150.112233,0.000357,6]
[336691411,1725028246691,-150.112233,0.000357,6]
[336691412,1725028246700,-150.112233,0.000357,7]
[336691413,1725028246710,-150.112233,0.000357,8]
[336691414,1725028246720,-150.112233,0.000357,8]
[336691415,1725028246729,-150.112233,0.000357,7]
[336691416,1725028246738,-150.112233,0.000357,9]
[336691417,1725028246750,-150.112233,0.000357,7]
[336691418,1725028246759,-150.112233,0.000357,9]
[336691419,1725028246768,-1547.25821,0.000357,7]
[336691420,1725028246778,-1547.25821,0.000357,7]
[336691421,1725028246787,-151.0,0.000357,7]
[336691422,1725028246797,-151.0,0.000357,7]
[336691423,1725028246806,-188.003378,0.000357,10]
[336691424,1725028246816,-447.75719027,0.000358,16]
[336691425,1725028246825,-447.75719027,0.000358,16]
[336691426,1725028246834,-447.75719027,0.000358,16]
[336691427,1725028246844,-447.75719027,0.000358,16]
[336691428,1725028246855,-150.112233,0.000358,9]
[336691429,1725028246866,-150.112233,0.000358,6]
[336691430,1725028246875,-150.112233,0.000358,10]
[336691431,1725028246885,-150.112233,0.000358,6]
[336691432,1725028246896,-150.112233,0.000358,8]
[336691433,1725028246906,-150.112233,0.000358,10]
[336691434,1725028246917,-150.112233,0.000358,10]
[336691435,1725028246927,-150.112233,0.000358,10]
[336691436,1725028246939,-150.112233,0.000358,9]
[336691437,1725028246949,-151.0,0.000358,7]
[336691438,1725028246958,-1487.753155,0.000358,7]
[336691439,1725028246967,-1487.753155,0.000358,7]
[336691440,1725028246977,-3746.067549,0.000358,7]
[336691441,1725028246987,-3746.067549,0.000358,7]
[336691442,1725028246998,-151.0,0.000358,7]
[336691443,1725028247007,-229.441318,0.000358,7]
[336691444,1725028247016,-229.441318,0.000358,7]
[336691445,1725028247026,-187.817521,0.000358,7]
[336691446,1725028247036,-187.817521,0.000358,7]
[336691447,1725028247045,-151.0,0.000358,7]
[336691448,1725028247055,-283.476992,0.000358,7]
[336691449,1725028247064,-283.476992,0.000358,7]
[336691450,1725028247074,-9272.720065,0.000358,7]
[336691451,1725028247083,-150.112233,0.000358,9]
[336691452,1725028247092,-150.112233,0.000358,8]
[336691453,1725028247102,-9272.720065,0.000358,7]
[336691454,1725028247111,-151.0,0.00035854,7]
[336691455,1725028247121,-151.0,0.00035854,7]
[336691456,1725028247130,-151.0,0.00035854,7]
[336691457,1725028247140,-500.0,0.00035867,31]
[336691458,1725028247149,-151.0,0.00035869,7]
[336691459,1725028247159,-151.0,0.00035869,7]
[336691460,1725028247168,-151.0,0.00035869,7]
[336691461,1725028247178,-151.0,0.00035869,7]
[336691462,1725028247188,-151.0,0.00035869,7]
[336691463,1725028247197,-151.0,0.00035869,7]
[336691464,1725028247206,-151.0,0.00035869,7]
[336691465,1725028247215,-500.0,0.00035879,31]
[336691466,1725028247224,-151.0,0.0003588,7]
[336691467,1725028247234,-151.0,0.0003588,7]
[336691468,1725028247246,-151.0,0.0003588,7]
[336691469,1725028247255,-427.687881,0.0003588,7]
[336691470,1725028247265,-427.687881,0.0003588,7]
[336691471,1725028247274,-500.0,0.00035889,31]
[336691472,1725028247283,-500.0,0.00035889,31]
[336691473,1725028247292,-500.0,0.00035889,31]
[336691474,1725028247302,-222.61379915,0.00035889,31]
[336691475,1725028247311,-500.0,0.0003589,31]
[336691476,1725028247320,-576.46551268,0.0003589,31]
[336691477,1725028247330,-500.0,0.0003589,31]
[336691478,1725028247340,-151.0,0.0003589,7]
[336691479,1725028247349,-266.422145,0.0003589,7]
[336691480,1725028247359,-502.05045916,0.0003589,31]
[336691481,1725028247368,-151.0,0.0003589,7]
[336691482,1725028247377,-151.0,0.0003589,7]
[336691483,1725028247386,-151.0,0.0003589,7]
[336691484,1725028247395,-279.682509,0.0003589,7]
[336691485,1725028247405,-589.08398287,0.0003589,31]
[336691486,1725028247414,-500.0,0.0003589,31]
[336691487,1725028247423,-503.6087173,0.0003589,31]
[336691488,1725028247432,-500.0,0.0003589,31]
[336691489,1725028247442,-500.0,0.0003589,31]
[336691490,1725028247452,-708.87,0.0003589,31]
[336691491,1725028247461,-334.53,0.0003589,31]
[336691492,1725028247471,-197.90139116,0.0003589,31]
[336691493,1725028247480,-500.0,0.0003589,31]
[336691494,1725028247490,-500.0,0.0003589,31]
[336691495,1725028247507,-601.95,0.0003589,31]
[336691496,1725028247517,-500.0,0.0003589,31]
[336691497,1725028247526,-500.0,0.0003589,31]